[Event "Panchenko Memorial-B 2021"]
[Site "Chelyabinsk"]
[Date "2021.09.19"]
[Round "8.1"]
[White "Zhapova, Yana"]
[Black "Kovanova, Baira"]
[Result "0-1"]
[ECO "C48"]
[WhiteElo "2212"]
[BlackElo "2310"]
[Annotator "NA"]
[PlyCount "102"]
[EventDate "2021.09.13"]
[EventType "swiss"]
[EventCountry "RUS"]
[SourceTitle "playchess.com"]
[Source "ChessBase"]
[SourceQuality "1"]
[TimeControl "5400+30"]

1. e4 {[%emt 0:00:04]} e5 {[%emt 0:00:04]} 2. Nf3 {[%emt 0:00:09]} Nc6 {[%emt 0:00:04]} 3. Nc3 {[%emt 0:00:11]} Nf6 {[%emt 0:00:06]} 4. Bb5 {[%emt 0:00:13]} Bd6 {[%emt 0:00:07]} 5. d3 {[%emt 0:00:21]} O-O {[%emt 0:00:06]} 6. O-O {[%emt 0:02:05]} a6 {[%emt 0:00:55]} 7. Ba4 {[%emt 0:00:22]} h6 {[%emt 0:01:29]} 8. Ne2 {[%emt 0:02:58]} b5 {[%emt 0:01:35]} 9. Bb3 {[%emt 0:00:17]} Re8 {[%emt 0:03:57]} 10. c3 {[%emt 0:01:25]} Bf8 {[%emt 0:01:45]} 11. Ng3 {[%emt 0:00:31]} d5 {[%emt 0:04:26]} 12. Qe2 {[%emt 0:04:09]} Be6 {[%emt 0:03:36]} 13. Rd1 {[%emt 0:00:41]} Qd7 {[%emt 0:08:13]} 14. h3 {[%emt 0:02:58]} Rad8 {[%emt 0:01:51]} 15. Bd2 {[%emt 0:09:27]} Qc8 {[%emt 0:03:05]} 16. Nh4 {[%emt 0:01:35]} Na5 {[%emt 0:05:31]} 17. Bc2 {[%emt 0:10:36]} dxe4 {[%emt 0:02:42]} 18. dxe4 {[%emt 0:00:53]} Nc4 {[%emt 0:03:28]} 19. Bc1 {[%emt 0:01:39]} Bxh3 $14 {[%emt 0:16:11]} 20. Rxd8 {[%emt 0:15:29]} Rxd8 {[%emt 0:00:16]} 21. gxh3 {[%emt 0:00:06]} Qxh3 {[%emt 0:00:13]} 22. Nhf5 {[%emt 0:00:48]} Ng4 {[%emt 0:05:20]} 23. b4 {[%emt 0:03:49]} a5 {[%emt 0:17:28]} 24. Rb1 {[%emt 0:03:06]} axb4 {[%emt 0:00:33]} 25. cxb4 {[%emt 0:00:07]} Qh2+ {[%emt 0:06:16]} 26. Kf1 {[%emt 0:00:10]} Qh3+ {[%emt 0:00:06]} 27. Ke1 {[%emt 0:01:20]} Nh2 {[%emt 0:00:48]} 28. Ne3 {[%emt 0:05:44]} Nxe3 {[%emt 0:02:21]} 29. Bxe3 {[%emt 0:00:27]} Qg2 {[%emt 0:02:50]} 30. Bd3 {[%emt 0:03:44]} h5 {[%emt 0:01:34]} 31. Kd1 {[%emt 0:03:07]} h4 {[%emt 0:00:46]} 32. Nf5 {[%emt 0:00:34]} Qxe4 {[%emt 0:00:48]} 33. Kc2 {[%emt 0:01:31]} Qc6+ {[%emt 0:01:52]} 34. Kb2 {[%emt 0:00:24]} e4 {[%emt 0:00:45]} 35. Nd4 {[%emt 0:04:30]} Rxd4 {[%emt 0:04:09]} 36. Bxd4 {[%emt 0:00:17]} exd3 {[%emt 0:00:02]} 37. Qxd3 {[%emt 0:00:59]} Nf3 {[%emt 0:00:05]} 38. Bc3 {[%emt 0:02:31]} h3 {[%emt 0:00:13]} 39. Qf1 {[%emt 0:03:08]} Qe6 {[%emt 0:01:12]} 40. Rd1 {[%emt 0:00:52]} Bd6 {[%emt 0:01:52]} 41. Rd3 {[%emt 0:00:57]} Qg4 {[%emt 0:01:08]} 42. Qh1 {[%emt 0:00:25]} Qg2 {[%emt 0:00:20]} 43. Rd1 {[%emt 0:02:58]} Qxh1 {[%emt 0:00:22]} 44. Rxh1 {[%emt 0:00:04]} h2 {[%emt 0:00:21]} 45. Kc2 {[%emt 0:00:22]} g5 {[%emt 0:00:19]} 46. Bf6 {[%emt 0:01:24]} Kh7 {[%emt 0:00:36]} 47. Kd3 {[%emt 0:00:43]} Kg6 {[%emt 0:00:02]} 48. Bc3 {[%emt 0:01:39]} Kh5 {[%emt 0:01:29]} 49. Ke4 {[%emt 0:00:26]} Kg4 {[%emt 0:00:07]} 50. a3 {[%emt 0:01:48]} Bf4 {[%emt 0:00:33]} 51. Bf6 {[%emt 0:01:13]} Nd2+ {[%emt 0:00:05]} 0-1

[Event "Panchenko Memorial-B 2021"]
[Site "Chelyabinsk"]
[Date "2021.09.19"]
[Round "8.2"]
[White "Bodnaruk, Anastasia"]
[Black "Charochkina, Daria"]
[Result "0-1"]
[ECO "B07"]
[WhiteElo "2425"]
[BlackElo "2307"]
[Annotator "NA"]
[PlyCount "102"]
[EventDate "2021.09.13"]
[EventType "swiss"]
[EventCountry "RUS"]
[SourceTitle "playchess.com"]
[Source "ChessBase"]
[SourceQuality "1"]
[TimeControl "5400+30"]

1. e4 {[%emt 0:00:03]} d6 {[%emt 0:03:11]} 2. d4 {[%emt 0:00:06]} Nf6 {[%emt 0:00:19]} 3. Nc3 {[%emt 0:00:06]} g6 {[%emt 0:00:05]} 4. Be3 {[%emt 0:01:25]} a6 {[%emt 0:00:03]} 5. h3 {[%emt 0:03:09]} Bg7 {[%emt 0:05:07]} 6. f4 {[%emt 0:03:43]} O-O {[%emt 0:04:27]} 7. e5 {[%emt 0:06:01]} Nfd7 {[%emt 0:09:31]} 8. Nf3 {[%emt 0:15:59]} c5 {[%emt 0:01:56]} 9. dxc5 {[%emt 0:06:43]} dxe5 {[%emt 0:01:37]} 10. fxe5 {[%emt 0:00:04]} Nxe5 {[%emt 0:13:05]} 11. Nxe5 {[%emt 0:01:04]} Bxe5 {[%emt 0:00:07]} 12. Qxd8 {[%emt 0:01:46]} Rxd8 {[%emt 0:03:16]} 13. Bc4 $11 {[%emt 0:04:01]} Bg3+ {[%emt 0:02:06]} 14. Ke2 {[%emt 0:04:08]} Bf5 {[%emt 0:00:29]} 15. Nd5 {[%emt 0:19:42]} Nc6 {[%emt 0:00:17]} 16. c3 {[%emt 0:02:10]} Be4 {[%emt 0:03:48]} 17. Nb6 {[%emt 0:02:00]} Rab8 {[%emt 0:00:45]} 18. Rhd1 {[%emt 0:03:07]} Ne5 {[%emt 0:01:17]} 19. Bd5 {[%emt 0:00:42]} Bf5 {[%emt 0:09:21]} 20. Rd4 {[%emt 0:07:33]} e6 {[%emt 0:14:09]} 21. Bxb7 {[%emt 0:00:45]} Rxd4 {[%emt 0:00:14]} 22. cxd4 {[%emt 0:00:02]} Rxb7 {[%emt 0:00:08]} 23. dxe5 {[%emt 0:00:04]} Bxe5 {[%emt 0:00:16]} 24. Kf3 {[%emt 0:05:33]} Bd3 {[%emt 0:04:08]} 25. a4 {[%emt 0:04:35]} f5 {[%emt 0:00:25]} 26. Rd1 {[%emt 0:02:58]} Be4+ {[%emt 0:00:02]} 27. Kf2 {[%emt 0:00:07]} Bxb2 {[%emt 0:00:53]} 28. Rd8+ {[%emt 0:03:14]} Kg7 {[%emt 0:04:59]} 29. Rd6 {[%emt 0:00:34]} Kf7 {[%emt 0:04:17]} 30. c6 {[%emt 0:00:59]} Rc7 {[%emt 0:00:28]} 31. Rd7+ {[%emt 0:02:51]} Rxd7 {[%emt 0:00:05]} 32. cxd7 {[%emt 0:00:01]} Bf6 {[%emt 0:00:09]} 33. Bc5 {[%emt 0:01:05]} Be7 {[%emt 0:04:08]} 34. Kf1 {[%emt 0:00:38]} e5 {[%emt 0:03:15]} 35. Bd6 {[%emt 0:00:29]} Bd8 {[%emt 0:01:32]} 36. a5 {[%emt 0:00:29]} Ke6 {[%emt 0:00:20]} 37. Bb8 {[%emt 0:00:18]} Bc6 {[%emt 0:00:53]} 38. Kf2 {[%emt 0:00:20]} e4 {[%emt 0:02:14]} 39. Ke3 {[%emt 0:00:25]} Bxd7 {[%emt 0:00:27]} 40. g3 {[%emt 0:00:56]} Bb5 {[%emt 0:00:40]} 41. h4 {[%emt 0:00:28]} Be7 {[%emt 0:00:54]} 42. Bf4 {[%emt 0:00:26]} Bc5+ {[%emt 0:00:23]} 43. Kd2 {[%emt 0:00:02]} Bb4+ {[%emt 0:00:03]} 44. Ke3 {[%emt 0:01:01]} Bxa5 {[%emt 0:00:02]} 45. Nc8 {[%emt 0:00:05]} Bb4 {[%emt 0:01:52]} 46. Kd4 {[%emt 0:00:06]} Be1 {[%emt 0:01:04]} 47. Nd6 {[%emt 0:01:19]} Bf2+ {[%emt 0:00:31]} 48. Kc3 {[%emt 0:00:01]} Bf1 {[%emt 0:00:44]} 49. Ne8 {[%emt 0:01:02]} e3 {[%emt 0:00:51]} 50. Nc7+ {[%emt 0:00:19]} Kf7 {[%emt 0:00:26]} 51. Nd5 {[%emt 0:00:34]} e2 {[%emt 0:00:33]} 0-1

[Event "Panchenko Memorial-B 2021"]
[Site "Chelyabinsk"]
[Date "2021.09.19"]
[Round "8.3"]
[White "Serikbay, Assel"]
[Black "Goltseva, Ekaterina"]
[Result "0-1"]
[ECO "C92"]
[WhiteElo "2221"]
[BlackElo "2286"]
[Annotator "NA"]
[PlyCount "104"]
[EventDate "2021.09.13"]
[EventType "swiss"]
[EventCountry "RUS"]
[SourceTitle "playchess.com"]
[Source "ChessBase"]
[SourceQuality "1"]
[TimeControl "5400+30"]

1. e4 {[%emt 0:00:04]} e5 {[%emt 0:03:56]} 2. Nf3 {[%emt 0:00:07]} Nc6 {[%emt 0:00:04]} 3. Bb5 {[%emt 0:00:07]} a6 {[%emt 0:00:04]} 4. Ba4 {[%emt 0:00:05]} Nf6 {[%emt 0:00:06]} 5. O-O {[%emt 0:00:08]} Be7 {[%emt 0:00:14]} 6. Re1 {[%emt 0:00:08]} b5 {[%emt 0:00:09]} 7. Bb3 {[%emt 0:00:07]} d6 {[%emt 0:00:18]} 8. c3 {[%emt 0:00:07]} O-O {[%emt 0:00:12]} 9. h3 {[%emt 0:00:06]} Nd7 {[%emt 0:00:29]} 10. d4 {[%emt 0:00:09]} Bf6 {[%emt 0:00:14]} 11. d5 {[%emt 0:00:34]} Ne7 {[%emt 0:01:00]} 12. Nbd2 {[%emt 0:00:31]} g6 {[%emt 0:03:27]} 13. Nf1 {[%emt 0:01:15]} Bg7 {[%emt 0:00:07]} 14. Bc2 {[%emt 0:01:31]} Nb6 {[%emt 0:03:02]} 15. Ng3 {[%emt 0:06:33]} Bd7 {[%emt 0:06:08]} 16. Rb1 {[%emt 0:10:04]} Kh8 {[%emt 0:14:50]} 17. h4 {[%emt 0:15:04]} Bg4 $11 {[%emt 0:04:52]} 18. Qd3 {[%emt 0:02:26]} Ng8 {[%emt 0:15:32]} 19. b3 {[%emt 0:06:55]} Bh6 {[%emt 0:08:56]} 20. Bb2 {[%emt 0:08:45]} Bxf3 {[%emt 0:03:15]} 21. gxf3 {[%emt 0:01:43]} Nf6 {[%emt 0:00:51]} 22. c4 {[%emt 0:01:26]} bxc4 {[%emt 0:04:48]} 23. bxc4 {[%emt 0:00:08]} Nbd7 {[%emt 0:00:14]} 24. Kf1 {[%emt 0:02:29]} Nh5 {[%emt 0:04:13]} 25. Nxh5 {[%emt 0:00:09]} gxh5 {[%emt 0:00:03]} 26. Ke2 {[%emt 0:02:17]} Rg8 {[%emt 0:01:09]} 27. Rh1 {[%emt 0:07:44]} Nf8 {[%emt 0:03:00]} 28. f4 {[%emt 0:08:40]} Ng6 {[%emt 0:01:11]} 29. Qf3 {[%emt 0:01:48]} Nxf4+ {[%emt 0:02:08]} 30. Kd1 {[%emt 0:01:07]} Rg4 {[%emt 0:01:09]} 31. Ba4 {[%emt 0:01:17]} Qe7 {[%emt 0:07:03]} 32. Kc2 {[%emt 0:00:23]} Ng6 {[%emt 0:01:07]} 33. Qe2 {[%emt 0:06:57]} Nxh4 {[%emt 0:01:00]} 34. Bc3 {[%emt 0:00:49]} Qf6 {[%emt 0:01:59]} 35. Rb7 {[%emt 0:01:47]} Rg2 {[%emt 0:01:28]} 36. Kb3 {[%emt 0:00:24]} Rxf2 {[%emt 0:02:31]} 37. Qxh5 {[%emt 0:00:10]} Bg5 {[%emt 0:00:31]} 38. Bd7 {[%emt 0:02:09]} h6 {[%emt 0:00:50]} 39. Bg4 {[%emt 0:05:24]} Nf3 {[%emt 0:03:43]} 40. Rxc7 {[%emt 0:02:26]} Rb8+ {[%emt 0:03:28]} 41. Ka3 {[%emt 0:00:02]} Kg7 {[%emt 0:00:36]} 42. Be6 {[%emt 0:01:58]} Rf8 {[%emt 0:00:02]} 43. Bb4 {[%emt 0:04:41]} Nd4 {[%emt 0:00:47]} 44. Bxd6 {[%emt 0:00:09]} Nxe6 {[%emt 0:00:41]} 45. dxe6 {[%emt 0:00:14]} Qxe6 {[%emt 0:00:13]} 46. Bxf8+ {[%emt 0:00:08]} Kxf8 {[%emt 0:00:02]} 47. Qd1 {[%emt 0:01:56]} Qb6 {[%emt 0:01:14]} 48. Rc8+ {[%emt 0:00:30]} Kg7 {[%emt 0:00:03]} 49. Rh3 {[%emt 0:00:45]} Rd2 {[%emt 0:01:26]} 50. Qf3 {[%emt 0:00:30]} Qa5+ {[%emt 0:00:27]} 51. Kb3 {[%emt 0:00:05]} Qxa2+ {[%emt 0:00:04]} 52. Kb4 {[%emt 0:00:08]} Be7+ {[%emt 0:00:19]} 0-1

[Event "Panchenko Memorial-B 2021"]
[Site "Chelyabinsk"]
[Date "2021.09.19"]
[Round "8.4"]
[White "Yakimova, Mariya"]
[Black "Nurgali, Nazerke"]
[Result "0-1"]
[ECO "E06"]
[WhiteElo "2185"]
[BlackElo "2247"]
[Annotator "NA"]
[PlyCount "90"]
[EventDate "2021.09.13"]
[EventType "swiss"]
[EventCountry "RUS"]
[SourceTitle "playchess.com"]
[Source "ChessBase"]
[SourceQuality "1"]
[TimeControl "5400+30"]

1. d4 {[%emt 0:00:03]} Nf6 {[%emt 0:00:08]} 2. c4 {[%emt 0:00:04]} e6 {[%emt 0:00:10]} 3. g3 {[%emt 0:00:04]} d5 {[%emt 0:00:43]} 4. Nf3 {[%emt 0:00:08]} Be7 {[%emt 0:00:15]} 5. Bg2 {[%emt 0:00:08]} O-O {[%emt 0:00:19]} 6. O-O {[%emt 0:00:06]} b6 {[%emt 0:00:25]} 7. cxd5 {[%emt 0:00:05]} exd5 {[%emt 0:00:13]} 8. Nc3 {[%emt 0:00:06]} Bb7 {[%emt 0:00:10]} 9. Bf4 {[%emt 0:00:10]} c5 {[%emt 0:00:24]} 10. Rc1 {[%emt 0:02:25]} Na6 {[%emt 0:00:21]} 11. Qc2 {[%emt 0:07:25]} Nc7 {[%emt 0:06:47]} 12. dxc5 {[%emt 0:13:00]} bxc5 {[%emt 0:00:59]} 13. Qb3 {[%emt 0:02:21]} Rb8 {[%emt 0:07:12]} 14. Nb5 {[%emt 0:07:52]} Nfe8 {[%emt 0:00:06]} 15. Nxc7 $14 {[%emt 0:07:11]} Nxc7 {[%emt 0:00:06]} 16. Nd4 {[%emt 0:00:47]} Bd6 {[%emt 0:07:25]} 17. Bxd6 {[%emt 0:00:50]} Qxd6 {[%emt 0:00:04]} 18. Nf5 {[%emt 0:06:46]} Qe5 {[%emt 0:08:42]} 19. Rxc5 {[%emt 0:06:55]} Na6 {[%emt 0:01:35]} 20. Rb5 {[%emt 0:04:41]} Qxf5 {[%emt 0:00:43]} 21. Rxb7 {[%emt 0:00:16]} Nc5 {[%emt 0:00:12]} 22. Rxb8 {[%emt 0:00:09]} Nxb3 {[%emt 0:00:03]} 23. Rxb3 {[%emt 0:00:14]} d4 {[%emt 0:02:26]} 24. Bf3 {[%emt 0:08:22]} Qc2 {[%emt 0:04:07]} 25. Kg2 {[%emt 0:00:20]} g6 {[%emt 0:00:35]} 26. h4 {[%emt 0:00:41]} h5 {[%emt 0:02:54]} 27. Ra3 {[%emt 0:03:58]} Qxb2 {[%emt 0:36:20]} 28. Rxa7 {[%emt 0:00:37]} Qc2 {[%emt 0:00:54]} 29. a4 {[%emt 0:07:35]} Rd8 {[%emt 0:00:40]} 30. Re1 {[%emt 0:05:15]} Qc5 {[%emt 0:02:46]} 31. Rb7 {[%emt 0:00:59]} Qa5 {[%emt 0:01:08]} 32. Ra1 {[%emt 0:01:28]} d3 {[%emt 0:00:26]} 33. exd3 {[%emt 0:02:00]} Rxd3 {[%emt 0:00:04]} 34. Rbb1 {[%emt 0:04:01]} Qf5 {[%emt 0:02:34]} 35. Bb7 {[%emt 0:01:31]} Rd2 {[%emt 0:00:31]} 36. Rf1 {[%emt 0:00:35]} Rb2 {[%emt 0:01:37]} 37. Bf3 {[%emt 0:00:24]} g5 {[%emt 0:01:14]} 38. Ra3 {[%emt 0:07:03]} gxh4 {[%emt 0:02:25]} 39. gxh4 {[%emt 0:00:34]} Rb4 {[%emt 0:00:27]} 40. Rg1 {[%emt 0:01:25]} Qg6+ {[%emt 0:02:20]} 41. Bg4 {[%emt 0:01:11]} Rxg4+ {[%emt 0:00:11]} 42. Rg3 {[%emt 0:00:02]} Qc6+ {[%emt 0:03:35]} 43. Kh3 {[%emt 0:01:28]} f5 {[%emt 0:00:06]} 44. Ra1 {[%emt 0:00:33]} Kf7 {[%emt 0:01:54]} 45. a5 {[%emt 0:00:06]} Qe4 {[%emt 0:01:23]} 0-1

[Event "Panchenko Memorial-B 2021"]
[Site "Chelyabinsk"]
[Date "2021.09.19"]
[Round "8.5"]
[White "Gevorgyan, Maria"]
[Black "Lysenko, Margarita"]
[Result "0-1"]
[ECO "B23"]
[WhiteElo "2233"]
[BlackElo "2207"]
[Annotator "NA"]
[PlyCount "88"]
[EventDate "2021.09.13"]
[EventType "swiss"]
[EventCountry "RUS"]
[SourceTitle "playchess.com"]
[Source "ChessBase"]
[SourceQuality "1"]
[TimeControl "5400+30"]

1. e4 {[%emt 0:00:01]} c5 {[%emt 0:00:09]} 2. Nc3 {[%emt 0:00:06]} d6 {[%emt 0:00:12]} 3. d4 {[%emt 0:00:05]} cxd4 {[%emt 0:00:10]} 4. Qxd4 {[%emt 0:00:05]} a6 {[%emt 0:00:14]} 5. b3 {[%emt 0:00:08]} e5 {[%emt 0:00:20]} 6. Qd3 {[%emt 0:02:55]} Nf6 {[%emt 0:03:42]} 7. Bb2 $11 {[%emt 0:05:11]} Nbd7 {[%emt 0:06:03]} 8. O-O-O {[%emt 0:06:57]} Be7 {[%emt 0:09:34]} 9. Kb1 {[%emt 0:01:58]} O-O {[%emt 0:01:02]} 10. g3 {[%emt 0:02:48]} b5 {[%emt 0:00:33]} 11. f4 {[%emt 0:06:39]} Bb7 {[%emt 0:11:24]} 12. Qe3 {[%emt 0:09:10]} b4 {[%emt 0:03:01]} 13. Nd5 {[%emt 0:00:23]} Nxd5 {[%emt 0:01:28]} 14. exd5 {[%emt 0:00:05]} Bf6 {[%emt 0:02:56]} 15. Qe4 {[%emt 0:19:56]} a5 {[%emt 0:05:35]} 16. Nf3 {[%emt 0:04:37]} Nc5 {[%emt 0:05:40]} 17. Qf5 {[%emt 0:09:10]} Bc8 {[%emt 0:29:51]} 18. Qh5 {[%emt 0:00:28]} exf4 {[%emt 0:03:07]} 19. Nd4 {[%emt 0:02:17]} Bd7 {[%emt 0:00:46]} 20. gxf4 {[%emt 0:10:04]} a4 {[%emt 0:02:45]} 21. Rg1 {[%emt 0:02:07]} axb3 {[%emt 0:00:36]} 22. axb3 {[%emt 0:00:01]} g6 {[%emt 0:06:23]} 23. Qh6 {[%emt 0:02:09]} Qa5 {[%emt 0:00:51]} 24. Bc4 {[%emt 0:00:44]} Ne4 {[%emt 0:01:36]} 25. Kc1 {[%emt 0:02:31]} Nc3 {[%emt 0:00:22]} 26. Rd3 {[%emt 0:01:56]} Qc5 {[%emt 0:01:33]} 27. Rgd1 {[%emt 0:07:30]} Ra2 {[%emt 0:01:26]} 28. Ne6 {[%emt 0:02:17]} Bxe6 {[%emt 0:01:43]} 29. dxe6 {[%emt 0:00:01]} Bg7 {[%emt 0:00:32]} 30. exf7+ {[%emt 0:01:50]} Kh8 {[%emt 0:00:03]} 31. Qh4 {[%emt 0:01:16]} Rxb2 {[%emt 0:00:23]} 32. Kxb2 {[%emt 0:00:32]} Nxd1+ {[%emt 0:00:58]} 33. Kc1 {[%emt 0:00:00]} Nc3 {[%emt 0:00:32]} 34. Qe1 {[%emt 0:00:02]} Na2+ {[%emt 0:01:00]} 35. Kd1 {[%emt 0:00:03]} Qh5+ {[%emt 0:00:10]} 36. Kd2 {[%emt 0:00:23]} Qxh2+ {[%emt 0:00:30]} 37. Ke3 {[%emt 0:00:24]} Qh3+ {[%emt 0:00:44]} 38. Ke2 {[%emt 0:01:20]} Nc3+ {[%emt 0:00:46]} 39. Kd2 {[%emt 0:00:05]} Qg2+ {[%emt 0:00:27]} 40. Kc1 {[%emt 0:00:01]} Qa8 {[%emt 0:00:31]} 41. Kd2 {[%emt 0:00:10]} Ne4+ {[%emt 0:00:12]} 42. Ke3 {[%emt 0:00:10]} Nc5 {[%emt 0:00:19]} 43. Rxd6 {[%emt 0:01:15]} Qe4+ {[%emt 0:00:13]} 44. Kf2 {[%emt 0:00:04]} Qxf4+ {[%emt 0:00:05]} 0-1

[Event "Panchenko Memorial-B 2021"]
[Site "Chelyabinsk"]
[Date "2021.09.20"]
[Round "9.1"]
[White "Kovanova, Baira"]
[Black "Lysenko, Margarita"]
[Result "1/2-1/2"]
[ECO "B90"]
[WhiteElo "2310"]
[BlackElo "2207"]
[Annotator "NA"]
[PlyCount "111"]
[EventDate "2021.09.13"]
[EventType "swiss"]
[EventCountry "RUS"]
[SourceTitle "playchess.com"]
[Source "ChessBase"]
[SourceQuality "1"]
[TimeControl "5400+30"]

1. e4 {[%emt 0:00:02]} c5 {[%emt 0:00:08]} 2. Nf3 {[%emt 0:00:05]} d6 {[%emt 0:00:14]} 3. d4 {[%emt 0:00:05]} cxd4 {[%emt 0:00:12]} 4. Nxd4 {[%emt 0:00:02]} Nf6 {[%emt 0:00:12]} 5. Nc3 {[%emt 0:00:06]} a6 {[%emt 0:00:05]} 6. Be3 {[%emt 0:00:13]} e5 {[%emt 0:00:20]} 7. Nf3 {[%emt 0:00:15]} Be7 {[%emt 0:01:33]} 8. Bc4 {[%emt 0:00:06]} O-O {[%emt 0:04:50]} 9. O-O {[%emt 0:01:17]} Qc7 {[%emt 0:14:49]} 10. Bb3 {[%emt 0:00:55]} Nc6 {[%emt 0:12:10]} 11. Qe2 {[%emt 0:01:32]} Na5 {[%emt 0:06:47]} 12. Bg5 {[%emt 0:03:01]} Nxb3 {[%emt 0:09:46]} 13. cxb3 {[%emt 0:00:36]} Be6 {[%emt 0:01:05]} 14. Bxf6 {[%emt 0:01:35]} Bxf6 {[%emt 0:00:08]} 15. Rfd1 {[%emt 0:00:12]} Rac8 {[%emt 0:02:13]} 16. Nd5 {[%emt 0:01:40]} Bxd5 {[%emt 0:00:34]} 17. Rxd5 {[%emt 0:00:06]} Be7 {[%emt 0:01:39]} 18. Rd3 {[%emt 0:00:40]} Qc2 {[%emt 0:06:43]} 19. Rd2 {[%emt 0:02:11]} Qc5 $14 {[%emt 0:01:30]} 20. Ne1 {[%emt 0:03:06]} g6 {[%emt 0:03:17]} 21. Rd3 {[%emt 0:11:20]} Rc6 {[%emt 0:08:51]} 22. Rd5 {[%emt 0:06:29]} Qb6 {[%emt 0:03:26]} 23. Nc2 {[%emt 0:02:54]} Rfc8 {[%emt 0:00:27]} 24. Ne3 {[%emt 0:01:16]} Rc1+ {[%emt 0:03:09]} 25. Rd1 {[%emt 0:10:06]} Rxa1 {[%emt 0:00:16]} 26. Rxa1 {[%emt 0:00:01]} Qc6 {[%emt 0:02:03]} 27. Nd5 {[%emt 0:03:32]} Bd8 {[%emt 0:00:31]} 28. Rd1 {[%emt 0:03:46]} Qc2 {[%emt 0:02:37]} 29. Kf1 {[%emt 0:01:05]} Qxe2+ {[%emt 0:04:22]} 30. Kxe2 {[%emt 0:00:05]} Kf8 {[%emt 0:01:13]} 31. Kd3 {[%emt 0:01:38]} Ke8 {[%emt 0:00:37]} 32. f3 {[%emt 0:02:00]} Kd7 {[%emt 0:01:06]} 33. b4 {[%emt 0:00:39]} Ke6 {[%emt 0:00:47]} 34. a4 {[%emt 0:02:47]} h5 {[%emt 0:04:04]} 35. Ra1 {[%emt 0:02:59]} Kd7 {[%emt 0:03:47]} 36. b5 {[%emt 0:01:55]} axb5 {[%emt 0:00:59]} 37. axb5 {[%emt 0:00:06]} Rb8 {[%emt 0:01:27]} 38. Ra7 {[%emt 0:02:54]} Ke6 {[%emt 0:00:39]} 39. b6 {[%emt 0:01:41]} Kd7 {[%emt 0:00:39]} 40. b4 {[%emt 0:02:34]} Kc6 {[%emt 0:00:20]} 41. Kc4 {[%emt 0:00:11]} Rc8 {[%emt 0:00:41]} 42. b5+ {[%emt 0:00:09]} Kd7+ {[%emt 0:00:07]} 43. Kb4 {[%emt 0:00:04]} Rb8 {[%emt 0:00:08]} 44. Ka5 {[%emt 0:01:03]} Bg5 {[%emt 0:00:42]} 45. Nc7 {[%emt 0:05:09]} Kc8 {[%emt 0:00:18]} 46. Nd5 {[%emt 0:08:13]} Bd2+ {[%emt 0:00:46]} 47. Ka4 {[%emt 0:00:05]} Be1 {[%emt 0:00:28]} 48. Kb3 {[%emt 0:02:47]} Bf2 {[%emt 0:00:07]} 49. Kc4 {[%emt 0:00:31]} Kd7 {[%emt 0:00:47]} 50. Kd3 {[%emt 0:00:36]} Bc5 {[%emt 0:00:31]} 51. g4 {[%emt 0:02:39]} Ke6 {[%emt 0:01:06]} 52. g5 {[%emt 0:01:50]} Kd7 {[%emt 0:00:21]} 53. Ke2 {[%emt 0:02:01]} Bd4 {[%emt 0:00:14]} 54. Kf1 {[%emt 0:00:54]} Bc5 {[%emt 0:00:11]} 55. Kg2 {[%emt 0:01:05]} Bd4 {[%emt 0:00:10]} 56. Kf1 {[%emt 0:01:03]} 1/2-1/2

[Event "Panchenko Memorial-B 2021"]
[Site "Chelyabinsk"]
[Date "2021.09.20"]
[Round "9.2"]
[White "Nurgali, Nazerke"]
[Black "Charochkina, Daria"]
[Result "1/2-1/2"]
[ECO "E15"]
[WhiteElo "2247"]
[BlackElo "2307"]
[Annotator "NA"]
[PlyCount "85"]
[EventDate "2021.09.13"]
[EventType "swiss"]
[EventCountry "RUS"]
[SourceTitle "playchess.com"]
[Source "ChessBase"]
[SourceQuality "1"]
[TimeControl "5400+30"]

1. d4 {[%emt 0:00:06]} Nf6 {[%emt 0:01:14]} 2. c4 {[%emt 0:00:13]} e6 {[%emt 0:00:21]} 3. Nf3 {[%emt 0:00:29]} b6 {[%emt 0:00:05]} 4. g3 {[%emt 0:00:22]} Nc6 {[%emt 0:00:04]} 5. Bg2 {[%emt 0:00:28]} Bb4+ {[%emt 0:00:29]} 6. Bd2 {[%emt 0:00:37]} Bxd2+ {[%emt 0:03:38]} 7. Nbxd2 {[%emt 0:01:28]} Rb8 {[%emt 0:00:11]} 8. O-O {[%emt 0:01:54]} O-O {[%emt 0:00:12]} 9. a3 {[%emt 0:03:35]} a5 {[%emt 0:01:41]} 10. Qc2 {[%emt 0:02:29]} d6 {[%emt 0:11:02]} 11. Rad1 {[%emt 0:07:49]} Bd7 {[%emt 0:04:47]} 12. Nb1 {[%emt 0:06:12]} e5 {[%emt 0:07:38]} 13. dxe5 $14 {[%emt 0:02:53]} dxe5 {[%emt 0:00:28]} 14. Nc3 {[%emt 0:00:36]} Re8 {[%emt 0:19:47]} 15. e3 {[%emt 0:09:16]} h6 {[%emt 0:07:09]} 16. Nh4 {[%emt 0:07:00]} Qc8 {[%emt 0:04:36]} 17. Nd5 {[%emt 0:01:56]} Nxd5 {[%emt 0:00:48]} 18. cxd5 {[%emt 0:00:04]} Na7 {[%emt 0:07:11]} 19. Rc1 {[%emt 0:06:07]} Nb5 {[%emt 0:00:13]} 20. Rfd1 {[%emt 0:01:59]} Qd8 {[%emt 0:02:00]} 21. Bf1 {[%emt 0:00:41]} Rb7 {[%emt 0:00:54]} 22. Nf3 {[%emt 0:06:11]} Nd6 {[%emt 0:02:45]} 23. Nd2 {[%emt 0:00:09]} e4 {[%emt 0:07:02]} 24. Nc4 {[%emt 0:03:16]} Nf5 {[%emt 0:03:07]} 25. Bg2 {[%emt 0:00:19]} Qe7 {[%emt 0:00:22]} 26. Qb3 {[%emt 0:00:19]} a4 {[%emt 0:00:46]} 27. Qc2 {[%emt 0:01:38]} Ra7 {[%emt 0:00:54]} 28. Nd2 {[%emt 0:05:41]} Nd6 {[%emt 0:00:09]} 29. Nb1 {[%emt 0:00:40]} Bb5 {[%emt 0:00:28]} 30. Bf1 {[%emt 0:00:25]} Bxf1 {[%emt 0:00:45]} 31. Kxf1 {[%emt 0:00:32]} Qd7 32. Rd4 {[%emt 0:02:12]} Ra5 {[%emt 0:04:28]} 33. Kg2 {[%emt 0:03:34]} Rc5 {[%emt 0:03:22]} 34. Qd1 {[%emt 0:01:01]} Rxc1 {[%emt 0:02:47]} 35. Qxc1 {[%emt 0:00:04]} Re5 {[%emt 0:00:20]} 36. Nc3 {[%emt 0:02:42]} b5 {[%emt 0:00:55]} 37. Qd1 {[%emt 0:00:35]} Qf5 {[%emt 0:01:22]} 38. Rb4 {[%emt 0:04:46]} Qd7 {[%emt 0:00:52]} 39. Qc2 {[%emt 0:04:13]} c5 {[%emt 0:00:40]} 40. dxc6 {[%emt 0:02:08]} Qxc6 {[%emt 0:00:01]} 41. Rd4 {[%emt 0:00:16]} Re6 {[%emt 0:00:10]} 42. Qe2 {[%emt 0:00:41]} Re5 {[%emt 0:00:21]} 43. Qc2 {[%emt 0:00:30]} 1/2-1/2